bitfinex/quotes_ETHUSD_20250822
["timestamp","ask_amount","ask_price","bid_price","bid_amount"]
[1755825644039,1e-08,4252.8,4252.7,11.57363165]
[1755825644768,1e-08,4252.8,4252.7,11.12733165]
[1755825644935,1e-08,4252.8,4252.7,28.77419198]
[1755825645553,0.002,4253.7,4252.7,33.19774467]
[1755825645554,1e-08,4253.7,4252.7,33.19774467]
[1755825645759,1e-08,4253.8,4253.7,3.01089451]
[1755825645961,1e-08,4253.8,4253.7,59.27985284]
[1755825646461,1e-08,4253.8,4253.7,60.19415284]
[1755825646835,1e-08,4253.8,4253.7,60.30998015]
[1755825648743,1e-08,4253.8,4253.7,36.40200384]
[1755825649053,1e-08,4253.8,4253.7,17.65318314]
[1755825649258,1e-08,4253.8,4253.7,10.94763414]
[1755825649421,1e-08,4253.8,4253.7,14.94463414]
[1755825650043,1e-08,4253.8,4253.7,10.94763414]
[1755825650359,1e-08,4253.8,4253.7,14.94463414]
[1755825650540,1e-08,4253.8,4253.7,17.89572114]
[1755825651429,1e-08,4253.8,4253.7,17.44942114]
[1755825651764,1e-08,4253.8,4253.7,10.94763414]
[1755825651962,1e-08,4253.8,4253.7,14.94463414]
[1755825652470,1e-08,4253.8,4253.7,10.94763414]
[1755825652674,1e-08,4253.8,4253.7,14.94363414]
[1755825653171,1e-08,4253.8,4253.7,14.81766111]
[1755825654184,0.448,4254.2,4254.1,6.01067346]
[1755825654387,0.2866,4254.2,4254.1,7.14681544]
[1755825654683,0.2866,4254.2,4254.1,6.34667346]
[1755825655053,0.7346,4254.2,4254.1,9.34667346]
[1755825655447,0.7346,4254.2,4254.1,7.00667346]
[1755825655648,0.7346,4254.2,4254.1,6.34667346]
[1755825655843,0.7346,4254.2,4254.1,10.00667346]
[1755825656581,0.7346,4254.2,4254.1,10.71341046]
[1755825656786,0.7346,4254.2,4254.1,0.706737]
[1755825657745,0.7346,4254.2,4254.1,3.05741046]
[1755825659091,0.7346,4254.2,4254.1,0.706737]
[1755825661790,0.7346,4254.2,4254.1,6.71741046]
[1755825662475,0.2866,4254.2,4254.1,8.023827]
[1755825662888,0.448,4254.6,4254.5,2.35045246]
[1755825663198,0.002,4254.7,4254.4,3.0]
[1755825663480,0.002,4254.7,4254.1,0.706737]
[1755825663481,0.2866,4254.3,4254.2,0.66]
[1755825663683,0.2866,4254.3,4254.2,6.01061821]
[1755825663980,0.7346,4254.3,4254.2,6.01061821]
[1755825664982,0.7346,4254.3,4254.2,3.0]
[1755825665893,0.7346,4254.3,4253.6,0.001]
[1755825666097,0.70226,4254.2,4253.6,0.001]
[1755825666252,0.70226,4254.2,4253.9,0.70693]
[1755825666455,0.2866,4254.0,4253.9,0.70693]
[1755825666797,0.7346,4254.0,4253.9,0.70693]
[1755825667495,0.2866,4254.0,4253.9,6.71771398]
[1755825667981,0.7534,4254.0,4253.9,6.71771398]
[1755825668551,0.7534,4254.0,4253.9,4.36693]
[1755825668778,0.7534,4254.0,4253.9,3.70693]
[1755825668980,0.7534,4254.0,4253.9,6.05771398]
[1755825670577,0.2866,4254.0,4253.9,6.71771398]
[1755825671886,0.002,4254.2,4254.1,2.35067346]
[1755825672096,0.2903,4254.2,4254.1,2.35067346]
[1755825673288,0.2903,4254.2,4254.1,6.03418019]
[1755825673493,0.2903,4254.2,4254.1,6.01067346]
[1755825673689,0.002,4254.2,4254.1,6.01067346]
[1755825673996,0.2903,4254.2,4254.1,6.01067346]
[1755825674792,0.002,4254.2,4254.1,6.01067346]
[1755825674993,0.002,4254.2,4254.1,6.32157346]
[1755825675192,0.002,4254.2,4254.1,7.6592022]
[1755825675395,0.002,4254.2,4254.1,12.1110022]
[1755825675906,0.002,4254.2,4254.1,12.3619232]
[1755825676783,0.002,4254.2,4254.1,12.8177232]
[1755825678813,0.002,4254.2,4254.1,12.3619232]
[1755825681303,0.002,4254.2,4254.1,12.8177232]
[1755825681691,0.002,4254.2,4254.1,12.3619232]
[1755825682916,0.002,4254.2,4254.1,8.3659232]
[1755825682917,0.2903,4254.2,4254.1,8.3659232]
[1755825683082,0.2903,4254.2,4254.1,8.0550232]
[1755825683482,0.2903,4254.2,4254.1,12.0500232]
[1755825683483,0.002,4254.2,4254.1,12.0500232]
[1755825684976,0.2903,4254.2,4254.1,12.0500232]
[1755825685177,0.7571,4254.2,4254.1,3.706721]
[1755825686188,0.002,4254.2,4254.1,6.71739446]
[1755825686386,0.002,4254.2,4254.1,7.48409446]
[1755825687600,0.002,4254.2,4254.1,7.02829446]
[1755825688510,0.002,4254.2,4254.1,8.86717841]
[1755825689081,0.002,4254.2,4254.1,8.41137841]
[1755825690923,0.002,4254.2,4254.1,8.86717841]
[1755825691331,0.02,4254.8,4254.1,8.86717841]
[1755825691332,0.02,4254.8,4254.7,3.01034197]
[1755825691530,0.02,4254.8,4254.7,10.8513176]
[1755825692200,0.02,4254.8,4254.7,11.5578996]
[1755825693003,0.02,4254.8,4254.7,12.0136996]
[1755825696329,0.02,4255.8,4255.0,0.66]
[1755825696534,0.02,4255.8,4255.7,6.00978969]
[1755825696705,0.3083,4255.8,4255.7,6.00978969]
[1755825697031,0.02,4255.8,4255.7,6.71626969]
[1755825698024,0.02,4255.8,4255.7,10.70926969]
[1755825698224,0.02,4255.8,4255.7,12.33078283]
[1755825698427,0.4738,4256.6,4256.5,2.34934805]
[1755825698646,0.7808,4256.6,4256.5,3.00934805]
[1755825698823,0.7808,4256.6,4256.5,6.00934805]
[1755825699313,0.307,4256.6,4256.5,6.00934805]
[1755825700420,0.4938,4256.8,4256.5,6.00934805]
[1755825700421,0.02,4256.8,4256.7,2.34923767]
[1755825701432,0.327,4256.8,4256.7,2.34923767]
[1755825702312,0.327,4256.8,4256.7,6.34223767]
[1755825702518,0.327,4256.8,4256.7,9.34223767]
[1755825703027,0.02,4256.8,4256.7,9.34223767]
[1755825703228,0.02,4256.8,4256.7,10.36412267]
[1755825705221,0.02,4256.8,4256.7,6.05552267]
[1755825705438,0.022,4256.8,4256.7,6.05552267]
[1755825705733,0.022,4256.8,4256.7,10.04752267]
[1755825707308,0.022,4256.8,4256.7,11.35320974]
[1755825709909,0.329,4256.8,4256.7,11.35320974]
[1755825711911,0.022,4256.8,4256.7,12.32880974]
[1755825712110,0.022,4256.8,4256.7,12.76790974]
[1755825715328,0.022,4256.8,4256.7,12.32880974]
[1755825715541,0.022,4256.8,4256.7,12.76790974]
[1755825716065,0.022,4256.8,4256.7,12.32880974]
[1755825716351,0.022,4256.8,4256.7,12.01320974]
[1755825716718,0.022,4256.8,4256.7,12.32880974]
[1755825716920,0.8028,4256.8,4256.7,8.02120974]
[1755825717547,0.8028,4256.8,4256.7,7.36120974]
[1755825717767,0.8028,4256.8,4256.7,7.696285]
[1755825717947,0.8028,4256.8,4256.7,8.356285]
[1755825718159,0.8028,4256.8,4256.7,10.70552267]
[1755825720258,0.8028,4256.8,4256.7,4.366285]
[1755825720470,0.8028,4256.8,4256.7,3.706285]
[1755825720776,0.8028,4256.8,4256.7,0.706285]
[1755825721543,0.329,4256.8,4256.7,4.366285]
[1755825721852,0.8028,4256.8,4256.7,3.706285]
[1755825722276,0.329,4256.8,4256.7,4.366285]
[1755825722575,0.022,4256.8,4256.7,6.73901504]
[1755825722886,0.022,4256.8,4256.7,6.71552267]
[1755825723244,0.022,4256.8,4256.7,12.32549992]
[1755825723746,0.022,4256.8,4256.7,12.76459992]
[1755825724849,0.022,4256.8,4256.7,12.32549992]
[1755825730488,0.022,4256.8,4256.7,12.00989992]
[1755825730965,0.3342,4256.8,4256.7,12.00989992]
[1755825731169,0.022,4256.8,4256.7,12.32029992]
[1755825732690,0.3342,4256.8,4256.7,12.00989992]
[1755825732897,0.022,4256.8,4256.7,12.00989992]
[1755825733058,0.022,4256.8,4256.7,12.32029992]
[1755825733583,0.022,4256.8,4256.7,12.74829992]
[1755825734078,0.022,4256.8,4256.7,12.32029992]
[1755825734391,0.7814,4256.8,4256.7,12.00889992]
[1755825734958,0.7814,4256.8,4256.7,6.05552267]
[1755825735201,0.7814,4256.8,4256.7,0.706285]
[1755825736276,0.3342,4256.8,4256.7,3.71552267]
[1755825737293,0.7814,4256.8,4256.7,3.71552267]
[1755825737897,0.3342,4256.8,4256.7,3.71552267]
[1755825738197,0.3342,4256.8,4256.7,5.33120957]
[1755825738198,0.022,4256.8,4256.7,5.33120957]
[1755825738409,0.022,4256.8,4256.7,5.02080957]
[1755825738564,0.3342,4256.8,4256.7,5.02080957]
[1755825738989,0.022,4256.8,4256.7,5.02080957]
[1755825739197,0.3342,4256.8,4256.7,5.02080957]
[1755825739712,0.022,4256.8,4256.7,5.02080957]
[1755825740218,0.022,4256.8,4256.7,5.33120957]
[1755825740404,0.022,4256.8,4256.7,5.02080957]
[1755825740713,0.3342,4256.8,4256.7,5.02080957]
[1755825741282,0.7814,4256.8,4256.7,5.02080957]
[1755825741520,0.7814,4256.8,4256.7,3.71552267]
[1755825741703,0.7814,4256.8,4256.7,0.706285]
[1755825744622,9.35800151,4256.8,4256.7,0.706285]
[1755825744996,9.35800151,4256.8,4256.1,0.001]
[1755825745187,6.76960151,4256.4,4256.1,0.001]
[1755825745386,0.3122,4256.2,4256.1,0.001]
[1755825745822,0.7594,4256.2,4256.1,0.001]
[1755825746026,0.7594,4256.2,4256.1,0.179674]
[1755825747991,0.7594,4256.2,4256.1,0.001]
[1755825749317,30.0,4256.1,4255.3,0.001]
[1755825749638,7.08180151,4255.4,4255.3,0.001]
[1755825749922,11.06880151,4255.4,4255.3,0.001]
[1755825750222,11.51600151,4255.4,4255.3,0.001]
[1755825750956,4.2992,4255.4,4255.3,0.001]
[1755825751092,11.51600151,4255.4,4255.3,0.001]
[1755825752449,11.06880151,4255.4,4255.3,0.001]
[1755825752805,11.51600151,4255.4,4255.3,0.001]
[1755825754537,3.988,4255.4,4255.3,0.3114]
[1755825754751,3.988,4255.4,4255.3,0.7394]
[1755825754947,3.988,4255.4,4255.3,0.3114]
[1755825755248,1.807,4256.0,4255.3,0.3114]
[1755825755452,3.988,4255.9,4255.3,3.08936307]
[1755825755651,1.808,4256.7,4255.5,2.34990012]
[1755825755952,1.808,4256.7,4255.4,0.97194754]
[1755825755953,3.988,4256.6,4255.6,1.088]
[1755825756150,10.75760151,4256.6,4255.6,0.66]
[1755825756448,6.76960151,4256.2,4255.5,0.66]
[1755825756652,3.988,4256.1,4255.5,0.66]
[1755825756857,3.988,4256.1,4255.3,0.661]
[1755825757063,3.988,4256.1,4255.5,0.66]
[1755825757245,3.988,4256.1,4255.3,0.001]
[1755825757750,3.988,4256.1,4255.3,2.35099869]
[1755825757961,3.988,4256.1,4255.3,0.001]
[1755825758478,3.988,4256.1,4255.3,2.35100822]
[1755825758633,3.988,4256.1,4255.4,0.4497]
[1755825758955,0.002,4256.4,4256.0,0.2984]
[1755825759260,3.988,4256.3,4255.5,0.66]
[1755825759773,3.988,4256.3,4256.1,0.706553]
[1755825760075,0.3113,4256.2,4256.1,0.706553]
[1755825760286,0.7396,4256.2,4255.3,0.001]
[1755825760684,0.7396,4256.2,4255.6,0.706553]
[1755825761171,0.002,4256.4,4256.1,0.2984]
[1755825761374,3.988,4256.3,4256.1,0.2984]
[1755825761562,3.988,4256.3,4256.1,2.64796222]
[1755825761769,3.988,4256.3,4256.2,0.4497]
[1755825761952,3.988,4256.3,4256.2,0.7481]
[1755825762276,3.988,4256.3,4256.2,0.2984]
[1755825762775,3.988,4256.3,4255.8,0.4497]
[1755825763080,0.3113,4255.9,4255.6,0.706553]
[1755825763280,0.4283,4255.8,4255.6,0.706553]
[1755825763578,0.7396,4255.7,4255.6,0.706553]
[1755825764163,0.3113,4255.7,4255.6,0.706553]
[1755825764357,3.988,4255.9,4255.6,0.706553]
[1755825764557,0.002,4256.4,4255.6,1.454653]
[1755825764790,3.988,4256.3,4255.7,3.0]
[1755825764972,3.988,4256.3,4256.2,0.2984]
[1755825765848,3.988,4256.3,4255.7,2.79948481]
[1755825765849,3.988,4256.3,4255.7,0.4497]
[1755825766049,3.988,4256.3,4256.2,0.706548]
[1755825766250,4.2993,4256.3,4256.2,0.706548]
[1755825767463,3.988,4256.3,4256.2,0.706548]
[1755825768262,4.2993,4256.3,4256.2,0.706548]
[1755825769993,6.1063,4255.4,4255.3,0.001]
[1755825770197,6.5346,4255.4,4255.3,0.001]
[1755825777588,2.1193,4255.4,4255.3,0.001]
[1755825777798,5.796,4255.4,4255.3,0.2994]
[1755825778000,5.796,4255.4,4255.3,0.001]
[1755825778193,1.808,4255.4,4255.3,0.001]
[1755825778434,5.796,4255.4,4255.3,0.2994]
[1755825779130,6.1073,4255.4,4255.3,0.001]
[1755825781594,5.796,4255.4,4255.3,0.001]
[1755825782300,6.1073,4255.4,4255.3,0.001]
[1755825783124,5.796,4255.4,4255.3,0.001]
[1755825783432,5.796,4255.4,4255.3,0.2994]
[1755825783433,1.808,4255.4,4255.3,0.2994]
[1755825783736,5.796,4255.4,4255.3,0.001]
[1755825783909,1.808,4255.4,4255.3,0.001]
[1755825784098,5.796,4255.4,4255.3,0.001]
[1755825784956,5.796,4255.4,4255.3,0.2994]
[1755825785246,5.796,4255.4,4255.3,0.7491]
[1755825786641,1.808,4255.4,4255.3,0.7491]
[1755825786805,5.796,4255.4,4255.3,0.7491]
[1755825787605,1.808,4255.4,4255.3,0.7491]
[1755825787922,3.988,4255.4,4255.3,6.09911057]
[1755825788105,3.988,4255.4,4255.3,6.94403356]
[1755825788306,3.988,4255.5,4255.3,6.94403356]
[1755825788559,3.988,4255.5,4255.4,0.4276]
[1755825788736,3.988,4255.6,4255.5,6.00985616]
[1755825789040,1.808,4256.0,4255.6,2.34983846]
[1755825789041,3.988,4255.7,4255.6,2.34983846]
[1755825789354,3.988,4255.7,4255.3,0.001]
[1755825789355,0.0898,4255.7,4255.3,0.001]
[1755825789652,3.988,4255.6,4255.3,0.001]
[1755825789850,0.3037,4255.4,4255.3,0.001]
[1755825790058,4.2917,4255.4,4255.3,0.001]
[1755825790269,3.988,4255.4,4255.3,0.001]
[1755825790554,4.291,4255.4,4255.3,0.001]
[1755825793155,3.988,4255.4,4255.3,0.001]
[1755825794055,1.808,4256.0,4255.3,0.2893]
[1755825794352,3.988,4255.9,4255.4,3.00992152]
[1755825794559,3.988,4255.9,4255.8,0.2883]
[1755825794751,1.808,4256.0,4255.9,5.34967926]
[1755825794752,3.988,4256.0,4255.9,5.34967926]
[1755825794918,3.988,4256.0,4255.9,3.06557926]
[1755825795740,0.002,4256.3,4256.0,2.34961471]
[1755825795943,3.988,4256.2,4256.0,2.34961471]
[1755825796149,3.988,4256.2,4256.1,0.7159]
[1755825796757,3.988,4256.2,4256.1,3.06546885]
[1755825797060,3.988,4256.2,4256.1,0.7159]
[1755825797726,3.988,4256.2,4256.1,1.42241]
[1755825798127,3.988,4256.2,4256.1,3.77197885]
[1755825798659,3.988,4256.2,4256.1,1.42241]
[1755825799660,3.988,4256.2,4256.1,4.42241]
[1755825799955,3.988,4256.2,4256.1,0.2883]
[1755825800125,3.988,4256.2,4256.1,0.99481]
[1755825800326,3.988,4256.2,4256.1,1.42241]
[1755825804358,3.988,4256.2,4256.1,0.99481]
[1755825804564,3.988,4256.2,4256.1,0.2883]
[1755825804765,3.988,4256.2,4256.1,0.7159]
[1755825805064,3.988,4256.2,4256.1,0.2883]
[1755825805367,3.988,4256.2,4256.1,0.7159]
[1755825805872,0.002,4256.3,4256.1,6.06546885]
[1755825806080,0.002,4256.3,4256.2,5.77711365]
[1755825806384,3.988,4256.3,4256.2,3.7159]
[1755825809057,3.988,4256.3,4256.2,3.994795]
[1755825809434,0.002,4256.3,4256.2,3.994795]
[1755825809635,3.988,4256.3,4256.2,3.994795]
[1755825810746,3.988,4256.3,4256.2,4.422395]
[1755825812564,0.002,4256.3,4256.2,6.77190865]
[1755825812768,0.002,4256.3,4256.2,4.422395]
[1755825812769,3.988,4256.3,4256.2,4.422395]
[1755825813470,0.002,4256.3,4256.2,6.77190865]
[1755825813642,0.002,4256.3,4256.2,8.34406135]
[1755825818477,0.002,4256.3,4256.2,7.91646135]
[1755825818638,0.002,4256.3,4256.2,12.35656135]
[1755825824174,0.002,4256.3,4256.2,16.64656135]
[1755825825783,0.2984,4256.3,4256.2,0.706495]
[1755825826082,0.7638,4256.3,4256.2,0.706495]
[1755825826997,0.002,4256.3,4256.2,6.38970378]
[1755825827168,0.002,4256.3,4256.2,7.48130865]
[1755825827370,0.002,4256.3,4256.2,8.0092982]
[1755825829484,0.002,4256.3,4256.2,8.4643982]
[1755825834119,0.002,4256.3,4256.2,11.9932982]
[1755825834617,0.002,4256.3,4256.2,11.6820982]
[1755825834771,0.002,4256.3,4256.2,11.0220982]
[1755825834967,0.0992,4256.3,4256.2,11.6820982]
[1755825835417,0.0992,4256.3,4256.2,7.6990982]
[1755825835575,0.0992,4256.3,4256.2,11.6820982]
[1755825835915,0.561,4256.3,4256.2,0.706495]
[1755825836877,0.561,4256.3,4255.3,2.35100674]
[1755825836878,0.561,4256.3,4255.3,0.001]
[1755825841122,0.561,4256.3,4255.4,0.706654]
[1755825842790,0.561,4256.3,4255.3,0.001]
[1755825844392,3.984,4256.2,4255.3,3.001]
[1755825844593,0.4638,4256.3,4255.3,0.52165604]
[1755825844800,0.002,4256.3,4255.5,3.0]
[1755825844993,0.002,4256.3,4256.0,5.34962406]
[1755825845200,0.002,4256.3,4256.0,2.34962406]
[1755825845441,0.002,4256.3,4256.1,2.34955569]
[1755825845643,0.002,4256.3,4256.2,2.34951365]
[1755825846003,0.002,4256.3,4256.2,3.11481365]
[1755825846228,0.002,4256.3,4256.2,5.94017501]
[1755825846398,0.2984,4256.3,4256.2,3.0]
[1755825847195,0.2984,4256.3,4256.2,5.34951365]
[1755825847404,0.2984,4256.3,4256.2,3.0]
[1755825848106,0.2984,4256.3,4256.2,3.4653]
[1755825848529,0.002,4256.3,4256.2,3.4653]
[1755825848732,0.2956,4256.3,4256.2,3.4653]
[1755825848937,0.002,4256.3,4256.2,6.12911365]
[1755825849138,0.002,4256.3,4256.2,6.61972118]
[1755825851407,0.002,4256.3,4256.2,6.30542118]
[1755825852047,0.002,4256.3,4256.2,3.95590753]
[1755825852407,0.2956,4256.3,4256.2,3.4653]
[1755825855012,0.002,4256.3,4256.2,6.58791365]
[1755825855423,0.002,4256.3,4256.2,3.4653]
[1755825856143,0.002,4256.3,4256.2,5.81481365]
[1755825856725,0.002,4256.3,4256.2,6.12911365]
[1755825856929,0.002,4256.3,4256.2,7.43578661]
[1755825857129,0.002,4256.3,4256.2,6.97698661]
[1755825857437,0.2956,4256.3,4256.2,4.31317296]
[1755825857639,0.2956,4256.3,4256.2,6.66268661]
[1755825858268,0.002,4256.3,4256.2,6.97698661]
[1755825860028,0.002,4256.3,4256.2,6.66268661]
[1755825860338,0.2956,4256.3,4256.2,6.66268661]
[1755825860749,0.002,4256.3,4256.2,6.66268661]
[1755825861059,0.2956,4256.3,4256.2,6.66268661]
[1755825861965,0.002,4256.3,4256.2,6.97698661]
[1755825862966,0.002,4256.3,4256.2,7.43578661]
[1755825863754,0.002,4256.3,4256.2,8.09578661]
[1755825865289,0.002,4256.3,4256.2,12.07878661]
[1755825869977,0.002,4256.3,4256.2,16.36878661]
[1755825871873,0.002,4256.4,4256.3,6.00945844]
[1755825872069,0.022,4256.8,4256.7,3.00923767]
[1755825872270,0.022,4256.8,4256.7,10.32903004]
[1755825872511,0.022,4256.8,4256.7,10.76433767]
[1755825873006,1.807,4258.1,4257.0,6.00907211]
[1755825873205,1.807,4258.1,4257.0,10.30537211]
[1755825873371,1.807,4258.1,4257.0,12.31042747]
[1755825874397,1.807,4258.1,4257.0,12.40458547]
[1755825874769,0.4347,4258.0,4257.0,12.40458547]
[1755825877192,1.807,4258.1,4257.0,12.40458547]
[1755825877392,2.2417,4258.1,4257.0,12.40458547]
[1755825880206,0.2949,4257.1,4257.0,11.63048547]
[1755825880705,0.002,4257.1,4257.0,12.38518547]
[1755825882283,0.002,4257.1,4257.0,11.94408547]
[1755825882486,0.002,4257.1,4257.0,11.63048547]
[1755825882672,0.0062,4257.1,4257.0,11.63048547]
[1755825884788,0.002,4257.1,4257.0,11.63048547]
[1755825885189,0.002,4257.1,4257.0,11.94408547]
[1755825887585,0.002,4257.1,4257.0,12.38518547]
[1755825889100,0.002,4257.1,4257.0,7.96308547]
[1755825889301,0.002,4257.1,4257.0,11.94308547]
[1755825889891,0.002,4257.1,4257.0,11.62948547]
[1755825890514,0.2949,4257.1,4257.0,7.64948547]
[1755825890685,0.2949,4257.1,4257.0,11.62948547]
[1755825891082,0.7355,4257.1,4257.0,10.08323011]
[1755825892215,0.2949,4257.1,4257.0,10.08323011]
[1755825892878,0.7355,4257.1,4257.0,10.08323011]
[1755825893615,0.2949,4257.1,4257.0,10.08323011]
[1755825893784,0.7355,4257.1,4257.0,10.08323011]
[1755825895500,0.2949,4257.1,4257.0,10.08323011]
[1755825896439,0.002,4257.1,4257.0,10.958454]
[1755825896642,0.002,4257.1,4257.0,11.399554]
[1755825897909,0.002,4257.1,4257.0,10.958454]
[1755825898236,0.002,4257.1,4257.0,10.644854]
[1755825898938,0.2949,4257.1,4257.0,6.664854]
[1755825899124,0.2949,4257.1,4257.0,10.643854]
[1755825899444,0.002,4257.1,4257.0,11.398554]
[1755825900435,0.002,4257.1,4257.0,10.643854]
[1755825901239,0.002,4257.1,4257.0,10.957454]
[1755825903165,0.1272,4257.1,4257.0,6.664854]
[1755825903339,0.1272,4257.1,4257.0,10.643854]
[1755825903853,0.1272,4257.1,4257.0,6.664854]
[1755825904065,0.1272,4257.1,4257.0,10.643854]
[1755825904219,0.1272,4257.1,4257.0,7.08223011]
[1755825904549,0.5646,4257.1,4257.0,3.10323011]
[1755825904765,0.5646,4257.1,4257.0,0.094158]
[1755825911875,0.5646,4257.1,4256.8,0.001]
[1755825912027,6.76694356,4256.9,4256.8,0.001]
[1755825912228,7.07484356,4256.9,4256.8,0.001]
[1755825912431,7.53834356,4256.9,4256.8,0.001]
[1755825912835,14.51734356,4256.9,4256.8,0.001]
[1755825913066,45.02304077,4256.9,4256.8,0.001]
[1755825913364,44.51734356,4256.9,4256.8,0.001]
[1755825913566,11.51734356,4256.9,4256.8,0.001]
[1755825913875,7.53834356,4256.9,4256.8,0.001]
[1755825914168,4.2869,4256.9,4256.8,0.001]
[1755825914880,0.3079,4256.9,4256.8,0.001]
[1755825915051,4.2869,4256.9,4256.8,0.001]
[1755825915369,0.002,4257.1,4256.8,0.3003]
[1755825915580,0.002,4257.1,4256.9,0.4741]
[1755825915749,0.002,4257.1,4257.0,0.2993]
[1755825915954,0.002,4257.1,4257.0,5.64837211]
[1755825916154,0.002,4257.1,4257.0,6.12247211]
[1755825916543,0.002,4257.1,4257.0,6.78247211]
[1755825916873,0.002,4257.1,4257.0,7.69573742]
[1755825920373,0.002,4257.1,4257.0,6.56163742]
[1755825920563,0.002,4257.1,4257.0,7.03573742]
[1755825920877,0.002,4257.1,4257.0,7.69573742]
[1755825923378,0.002,4257.1,4257.0,7.78989542]
[1755825924173,0.002,4257.1,4257.0,7.96877459]
[1755825924861,0.002,4257.1,4257.0,7.49467459]
[1755825925056,0.002,4257.1,4257.0,7.96877459]
[1755825933171,0.002,4257.1,4257.0,11.94577459]
[1755825933787,0.002,4257.6,4257.5,3.00879624]
[1755825933957,0.002,4257.6,4257.5,10.84435061]
[1755825934157,0.002,4257.6,4257.5,11.29496265]
[1755825935385,0.002,4257.6,4257.5,11.38910665]
[1755825935908,0.02,4257.8,4257.7,3.00868591]
[1755825936073,0.02,4257.8,4257.7,10.30847276]
[1755825936393,0.02,4257.8,4257.7,12.38780385]
[1755825937092,0.02,4257.8,4257.7,12.48194385]
[1755825937395,1e-08,4257.8,4257.7,12.48194385]
[1755825937698,1e-08,4257.8,4257.7,12.59954385]
[1755825937900,0.002,4258.0,4257.9,20.63626081]
[1755825937901,1e-08,4258.0,4257.9,20.63626081]
[1755825938063,1e-08,4258.0,4257.9,31.58170044]
[1755825938264,1e-08,4258.0,4257.9,24.15706928]
[1755825938678,1e-08,4258.0,4257.9,24.86302028]
[1755825941818,0.29700001,4258.0,4257.9,17.34366621]
[1755825942506,0.29700001,4258.0,4257.9,13.05366621]
[1755825942695,0.76130001,4258.0,4257.9,12.39366621]
[1755825943018,0.76130001,4258.0,4257.9,13.05366621]
[1755825943386,1e-08,4258.0,4257.9,13.36996621]
[1755825943716,1e-08,4258.0,4257.9,13.81096621]
[1755825943881,1e-08,4258.0,4257.9,13.05366621]
[1755825944720,1e-08,4258.0,4257.9,13.36996621]
[1755825945609,1e-08,4258.0,4257.9,13.05366621]
[1755825945810,1e-08,4258.0,4257.9,13.36996621]
[1755825946004,0.29700001,4258.0,4257.9,13.05366621]
[1755825946210,0.29700001,4258.0,4257.9,9.07666621]
[1755825946428,0.29700001,4258.0,4257.9,13.05266621]
[1755825946630,0.29700001,4258.0,4257.9,10.05266621]
[1755825946806,0.76130001,4258.0,4257.9,10.05266621]
[1755825947132,0.76130001,4258.0,4257.9,13.05266621]
[1755825947922,0.29700001,4258.0,4257.9,13.05266621]
[1755825948336,0.29700001,4258.0,4257.9,9.07666621]
[1755825948636,0.29700001,4258.0,4257.9,13.05266621]
[1755825950524,0.76130001,4258.0,4257.9,13.05266621]
[1755825951235,0.76130001,4258.0,4257.9,8.41666621]
[1755825951422,0.76130001,4258.0,4257.9,10.03052658]
[1755825951624,0.76130001,4258.0,4257.9,10.69052658]
[1755825951817,0.76130001,4258.0,4257.9,6.71452658]
[1755825952848,1e-08,4258.0,4257.9,6.71452658]
[1755825953137,0.29700001,4258.0,4257.9,6.71452658]
[1755825953330,0.29700001,4258.0,4257.9,8.6946523]
[1755825953938,1e-08,4258.0,4257.9,9.0109523]
[1755825955830,1e-08,4258.0,4257.9,8.6946523]
[1755825956344,1e-08,4258.0,4257.9,9.0109523]
[1755825956711,0.29700001,4258.0,4257.9,8.6946523]
[1755825956933,1e-08,4258.0,4257.9,8.6946523]
[1755825957676,0.29670001,4258.0,4257.9,8.6946523]
[1755825957815,0.56030001,4258.0,4257.9,8.6946523]
[1755825958814,0.29670001,4258.0,4257.9,8.6946523]
[1755825959013,0.56030001,4258.0,4257.9,6.71452658]
[1755825959214,0.29670001,4258.0,4257.9,6.71452658]
[1755825959447,1e-08,4258.0,4257.9,6.71452658]
[1755825959649,1e-08,4258.0,4257.9,10.69052658]
[1755825960244,1e-08,4258.0,4257.9,11.44782658]
[1755825960554,1e-08,4258.0,4257.9,13.5037823]
[1755825964470,1e-08,4258.0,4257.9,12.7464823]
[1755825964634,1e-08,4258.0,4257.9,13.0627823]
[1755825965030,0.29700001,4258.0,4257.9,12.7464823]
[1755825966567,1e-08,4258.0,4257.9,12.7464823]
[1755825966870,1e-08,4258.0,4257.9,13.0627823]
[1755825968475,1e-08,4258.0,4257.9,12.7464823]
[1755825969752,0.28750001,4258.0,4257.9,6.42190672]
[1755825969953,0.72220001,4258.0,4257.9,6.05452658]
[1755825970209,0.72220001,4258.0,4257.9,3.705951]
[1755825970947,0.72220001,4258.0,4257.9,0.705951]
[1755825972957,0.72220001,4258.0,4257.8,0.001]
[1755825973158,0.28750001,4258.0,4257.8,0.001]
[1755825973479,0.4347,4257.9,4257.8,0.706951]
[1755825973667,0.7222,4257.9,4257.8,0.706951]
[1755825973859,0.7222,4257.9,4257.8,0.001]
[1755825979363,4.6972,4257.9,4257.8,0.001]
[1755825979764,34.6972,4257.9,4257.8,0.001]
[1755825980164,4.6972,4257.9,4257.8,0.001]
[1755825980772,0.7222,4257.9,4257.8,0.001]
[1755825980974,4.2625,4257.9,4257.8,0.001]
[1755825982898,1e-08,4258.0,4257.8,0.7659]
[1755825983095,1e-08,4258.0,4257.9,0.4576]
[1755825983298,1e-08,4258.0,4257.9,0.7649]
[1755825983976,1e-08,4258.0,4257.9,3.11347558]